Workbook

Sheet Feuil1
A3: Étiquettes de lignes | B3: % Taux de réussite
A4: Le Vocabulaire utilisé (tic de langage) est adapté et non familier | B4: 100.0%
A5: Le Conseiller respecte les campagnes discours (e.g. : Discours Printemps) | B5: 100.0%
A6: Le Conseiller propose le RDV le plus rapide au client => Si secteur non desservi par VVV (erreur MKG) et si le client ne veut pas se déplacer, programmer un rappel dans un trimestre (ouverture agence ?) et remercier le client pour sa confiance. | B6: 100.0%
A7: La typologie de véhicule est bien identifiée ET la BIBOPP respectée | B7: 100.0%
A8: Le Conseiller s'assure que le véhicule soit apte à rouler (Attention si véhicule non roulant, dissuader client uniquement) | B8: 100.0%
A9: Le Conseiller annonce la mise en attente et reprend le client régulièrement si besoin | B9: 100.0%
A10: Pas d'engagement | B10: 100.0%
A11: Le Conseiller demande au client s'il y a des réparations à faire / dans quel état est son véhicule | B11: 100.0%
A12: Le Conseiller reformule le besoin du client (si j'ai bien compris…) | B12: 100.0%
A13: Le Conseiller demande au moins 1 numéro de téléphone dont 1 portable / le reconfirme si déjà présent sur le dossier 2nd contact ou + => Le Conseiller doit reformuler pour garantir l'exactitude des données | B13: 100.0%
A14: Le Conseiller s'assure que le client a bien la Carte Grise et qu'elle est à son nom | B14: 100.0%
A15: Le Conseiller demande le code postal ou la ville du client pour identifier l'agence la plus proche 2nd contact ou + => Le Conseiller doit reformuler pour garantir l'exactitude des données | B15: 100.0%
A16: Le RDV réservé est bien conforme aux procédures (classiques ou spécifiques) et correspond à ce qui a été convenu avec le client | B16: 100.0%
A17: Le Conseiller demande le nom et prénom du client ET les épelle 2nd contact ou + => Le Conseiller doit reformuler pour garantir l'exactitude des données | B17: 100.0%
A18: Les informations importantes sont précisées (ex: réparation à prévoir, carrosserie abîmée..) | B18: 100.0%
A19: Le Conseiller demande si le véhicule est gagé | B19: 100.0%
A20: Reprise du crédit auto / leasing | B20: 100.0%
A21: Le Conseiller demande si pour le véhicule concerné, un crédit automobile est en cours | B21: 100.0%
A22: Si plusieurs dossiers clients, le conseiller s'assure que les autres Leads soient statués. | B22: 100.0%
A23: Le Conseiller donne l'adresse exacte de l'agence | B23: 100.0%
A24: Le Conseiller remercie le client pour sa confiance | B24: 100.0%
A25: Le Conseiller emploie un ton dynamique | B25: 100.0%
A26: Le Conseiller s'assure que la CG soit bien au nom du propriétaire depuis plus de 3 mois Si NON, le conseiller doit prévenir le client que l'expertise ne pourra pas être effectuée. | B26: 100.0%
A27: Le Conseiller est aimable, souriant | B27: 100.0%
A28: Le Conseiller s'assure que le véhicule a une plaque d'immatriculation française Si NON, le conseiller DOIT expliquer au client que l'expertise ne pourra pas être effectuée tant que la CG n'a pas été refaite. | B28: 100.0%
A29: Le Conseiller explique au client comment va se dérouler l'entretien téléphonique | B29: 100.0%
A30: Le Conseiller traite les objections | B30: 100.0%
A31: Le Conseiller explique le déroulé de l'expertise (Argu PEEL) | B31: 100.0%
A32: Le Statut du dossier est bien correct | B32: 100.0%
A33: Le Conseiller explique le prix en ligne (Argu PEEL) | B33: 100.0%
A34: Les données clients sont bien complétées (Nom, Prénom, Tel, Email…) | B34: 100.0%
A35: Le Conseiller fait preuve d'empathie | B35: 100.0%
A36: Paiement sécurisé par virement 72h | B36: 100.0%
A37: Le Conseiller informe le client que nous lui remettrons les documents de cession qu'il faudra transmettre à son assureur | B37: 100.0%
A38: RDV Gratuit | B38: 100.0%
A39: Le Conseiller informe le client que nous nous occupons de toutes les démarches administratives | B39: 100.0%
A40: Reprise immédiate | B40: 100.0%
A41: 30 minutes | B41: 100.0%
A42: Le Conseiller propose un RDV adapté au besoin du client | B42: 100.0%
A43: Le Conseiller respecte le temps de parole du client (ne coupe pas la parole) | B43: 80.0%
A44: Le Conseiller fait preuve d'écoute active et reformule le besoin du client si nécessaire (ne fait pas répéter) | B44: 80.0%
A45: Le Conseiller s'assure bien que le RDV convienne au client et s'assure que le client sera bien présent au RDV (explique l'importance de bloquer un créneau) | B45: 75.0%
A46: Les réponses aux Questions-Filtres sont intégralement reportées en commentaires | B46: 75.0%
A47: Les Questions-Filtres sont posées dès le début de l'appel | B47: 66.7%
A48: La situation administrative est bien identifiée ET la BIBOPP est respectée | B48: 66.7%
A49: Le Conseiller demande l'adresse email du client / la reconfirme si déjà présente sur le dossier ET l'épelle 2nd contact ou + => Le Conseiller doit reformuler pour garantir l'exactitude des données | B49: 66.7%
A50: Le Conseiller sait diriger son entretien téléphonique (évite les digressions client => DMT ~15mn max) | B50: 60.0%
A51: Le Conseiller s’assure que la demande du client a été traitée / Par ex : "ai-je bien répondu à votre demande?", "Avez- vous d'autres questions ?"… | B51: 60.0%
A52: Le Conseiller personnalise son appel (une fois lors de la prise de congés) | B52: 60.0%
A53: Le Conseiller fait une synthèse des décisions prises et reconfirme le RDV (Date & Heure & Agence & MRK/MOD) | B53: 50.0%
A54: Le Conseiller informe le client de la liste exacte des documents à fournir lors de l'expertise ==> CF BIBOPP Si 1er contact : Le Conseiller informe le client des documents / éléments à apporter lors du RDV Si 2nd contact ou + (annulation, modification) : le Conseiller doit reformuler l'ensemble des éléments | B54: 25.0%
A55: Le Conseiller explique la proposition de valeur comme suit : => Si secteur non desservi par VVV (erreur MKG), le conseiller doit informer le client de la proposition de valeur et l'orienter vers l'agence la plus proche
A56: Si annulation de RDV, le conseiller propose et argumente une nouvelle proposition de RDV
A57: Le Conseiller a une attitude anti-commerciale
A58: Le Conseiller part à la découverte du besoin (que puis-je faire pour vous?)
A59: Le Conseiller envoie une procuration CG et RIB si besoin
A60: Un rappel est bien programmé en cas de besoin / email envoyé si besoin / SMS des RDV si besoin
A61: Le Conseiller accueille le client ( VVV + Nom)
A62: Le Conseiller fait la simulation sur internet avec le client si ce dernier ne l'a pas faite avant de prendre contact avec nous

Sheet Grille Evaluation
C1: COMPETENCES BC-JUIN 2015
A4: Points obtenus | B4: Points potentiels
A5: =A8+A25+A40+A46+A50+A61+A68 -> 183.1 | B5: =B8+B25+B40+B46+B50+B61+B68 -> 209.0 | C5: =A5/B5 -> 87.6% | D5: Barème | E5: Taux de réussite par critère | F5: Barème retenu | G5: Moyenne / Critère | H5: Anthony GASTAUD-APPEL 1 | I5: Anthony GASTAUD-APPEL 2 | J5: Aurélia ABECASSIS-APPEL 1 | K5: Jean-Rénald EDOUARD-APPEL 1 | L5: Madina DIALLO-APPEL 1 | M5: Lila ALBANE-Appel 1 | N5: Lila ALBANE-Appel 2 | O5: Madina DIALLO-Appel 2 | P5: Rachel ATTO-Appel 1 | Q5: Salah BOUHRARAT-Appel 1 | R5: Salah BOUHRARAT-Appel 2 | S5: Yanis FAHRI-Appel 1 | T5: Yanis FAHRI-Appel 2 | U5: Dorsaf AGREBI-Appel 1 | V5: Dorsaf AGREBI-Appel 2 | W5: Hamady HIRAILLES-Appel 1 | X5: Hamady HIRAILLES-Appel 2 | Y5: Hamady HIRAILLES-Appel 3 | Z5: Fodié SISSOKO-Appel 1 | AA5: Fodié SISSOKO-Appel 2 | AB5: Aurélia ABECASSIS-APPEL 2
A6: PRISE DE CONTACT | C6: Le Conseiller accueille le client ( VVV + Nom) | D6: 2 | E6: =IFERROR(G6/F6,"") -> 100% | F6: =IF(LEN(G6)=0,"",D6) -> 2 | G6: =IFERROR(AVERAGE(H6:EC6),"") -> 2.0 | N6: 2 | O6: 2 | Z6: 2
A7: Nb Pts Obtenus | B7: Nb Pts potentiels | C7: Le Conseiller part à la découverte du besoin (que puis-je faire pour vous?) | D7: 1 | E7: =IFERROR(G7/F7,"") -> 100% | F7: =IF(LEN(G7)=0,"",D7) -> 1 | G7: 1.0 | N7: 1 | O7: 1 | Z7: 1
A8: =SUM(G6:G9) -> 13.8 | B8: =SUM(F6:F9) -> 14.0 | C8: Le Conseiller reformule le besoin du client (si j'ai bien compris…) | D8: 1 | E8: 80% | F8: 1 | G8: 0.8 | J8: 1 | N8: 1 | O8: 1 | Z8: 1 | AB8: 0
A9: =A8/B8 -> 99% | C9: Le Conseiller explique au client comment va se dérouler l'entretien téléphonique | D9: 10 | E9: 100% | F9: 10 | G9: 10.0 | J9: 10 | L9: 10 | N9: 10 | O9: 10 | P9: 10 | T9: 10 | Y9: 10 | Z9: 10 | AA9: 10 | AB9: 10
A10: PRISE D'INFORMATION | C10: Les Questions-Filtres sont posées dès le début de l'appel | D10: 10 | E10: 87% | F10: 10 | G10: 8.7 | J10: 0 | K10: 10 | L10: 10 | M10: 10 | N10: 10 | O10: 10 | P10: 10 | S10: 10 | T10: 10 | V10: 10 | X10: 0 | Y10: 10 | Z10: 10 | AA10: 10 | AB10: 10
C11: La typologie de véhicule est bien identifiée ET la BIBOPP respectée | D11: 10 | E11: 100% | F11: 10 | G11: 10.0 | J11: 10 | K11: 10 | L11: 10 | M11: 10 | O11: 10 | P11: 10 | S11: 10 | T11: 10 | X11: 10 | Y11: 10 | Z11: 10 | AA11: 10 | AB11: 10
C12: La situation administrative est bien identifiée ET la BIBOPP est respectée | D12: 10 | E12: 93% | F12: 10 | G12: 9.3 | J12: 0 | K12: 10 | L12: 10 | M12: 10 | N12: 10 | O12: 10 | P12: 10 | S12: 10 | T12: 10 | X12: 10 | Y12: 10 | Z12: 10 | AA12: 10 | AB12: 10
C13: Le Conseiller demande le nom et prénom du client ET les épelle 2nd contact ou + => Le Conseiller doit reformuler pour garantir l'exactitude des données | D13: 2 | E13: 69% | F13: 2 | G13: 1.4 | J13: 2 | K13: 2 | L13: 2 | M13: 0 | N13: 2 | O13: 2 | P13: 2 | S13: 2 | T13: 0 | W13: 0 | X13: 0 | Z13: 2 | AB13: 2
C14: Le Conseiller demande au moins 1 numéro de téléphone dont 1 portable / le reconfirme si déjà présent sur le dossier 2nd contact ou + => Le Conseiller doit reformuler pour garantir l'exactitude des données | D14: 2 | E14: 92% | F14: 2 | G14: 1.8 | J14: 2 | K14: 2 | L14: 2 | M14: 2 | N14: 2 | O14: 2 | P14: 2 | S14: 2 | T14: 2 | W14: 0 | X14: 2 | Z14: 2 | AB14: 2
C15: Le Conseiller demande l'adresse email du client / la reconfirme si déjà présente sur le dossier ET l'épelle 2nd contact ou + => Le Conseiller doit reformuler pour garantir l'exactitude des données | D15: 2 | E15: 77% | F15: 2 | G15: 1.5 | J15: 2 | K15: 2 | L15: 0 | M15: 2 | N15: 2 | O15: 2 | P15: 2 | S15: 2 | T15: 2 | W15: 0 | X15: 0 | Z15: 2 | AB15: 2
C16: Si plusieurs dossiers clients, le conseiller s'assure que les autres Leads soient statués. | D16: 2 | E16: 100% | F16: 2 | G16: 2.0 | H16: 2 | AA16: 2 | AB16: 2
C17: Le Conseiller demande le code postal ou la ville du client pour identifier l'agence la plus proche 2nd contact ou + => Le Conseiller doit reformuler pour garantir l'exactitude des données | D17: 2 | E17: 100% | F17: 2 | G17: 2.0 | J17: 2 | K17: 2 | L17: 2 | M17: 2 | O17: 2 | P17: 2 | S17: 2 | T17: 2 | W17: 2 | X17: 2 | Z17: 2 | AA17: 2 | AB17: 2
C18: Le Conseiller s'assure que le véhicule a une plaque d'immatriculation française Si NON, le conseiller DOIT expliquer au client que l'expertise ne pourra pas être effectuée tant que la CG n'a pas été refaite. | D18: 2 | E18: 100% | F18: 2 | G18: 2.0 | J18: 2 | K18: 2 | L18: 2 | M18: 2 | O18: 2 | P18: 2 | S18: 2 | T18: 2 | W18: 2 | Z18: 2 | AA18: 2 | AB18: 2
C19: Le Conseiller s'assure que le véhicule soit apte à rouler (Attention si véhicule non roulant, dissuader client uniquement) | D19: 2 | E19: 100% | F19: 2 | G19: 2.0 | J19: 2 | K19: 2 | L19: 2 | M19: 2 | N19: 2 | O19: 2 | P19: 2 | S19: 2 | T19: 2 | W19: 2 | X19: 2 | Z19: 2 | AB19: 2
C20: Le Conseiller demande si le véhicule est gagé | D20: 2 | E20: 100% | F20: 2 | G20: 2.0 | J20: 2 | K20: 2 | L20: 2 | M20: 2 | O20: 2 | P20: 2 | S20: 2 | T20: 2 | W20: 2 | X20: 2 | Y20: 2 | Z20: 2 | AA20: 2 | AB20: 2
C21: Le Conseiller demande si pour le véhicule concerné, un crédit automobile est en cours | D21: 2 | E21: 100% | F21: 2 | G21: 2.0 | J21: 2 | K21: 2 | L21: 2 | M21: 2 | O21: 2 | P21: 2 | S21: 2 | T21: 2 | W21: 2 | X21: 2 | Y21: 2 | Z21: 2 | AA21: 2 | AB21: 2
C22: Le Conseiller demande au client s'il y a des réparations à faire / dans quel état est son véhicule | D22: 2 | E22: 93% | F22: 2 | G22: 1.9 | J22: 2 | K22: 2 | L22: 2 | M22: 2 | N22: 2 | O22: 2 | P22: 2 | S22: 2 | T22: 2 | V22: 0 | W22: 2 | X22: 2 | Z22: 2 | AB22: 2
C23: Le Conseiller s'assure que le client a bien la Carte Grise et qu'elle est à son nom | D23: 2 | E23: 100% | F23: 2 | G23: 2.0 | J23: 2 | K23: 2 | L23: 2 | M23: 2 | N23: 2 | O23: 2 | P23: 2 | S23: 2 | T23: 2 | W23: 2 | X23: 2 | Y23: 2 | Z23: 2 | AA23: 2 | AB23: 2
A24: Nb Pts Obtenus | B24: Nb Pts potentiels | C24: Le Conseiller s'assure que la CG soit bien au nom du propriétaire depuis plus de 3 mois Si NON, le conseiller doit prévenir le client que l'expertise ne pourra pas être effectuée. | D24: 2 | E24: 100% | F24: 2 | G24: 2.0 | J24: 2 | K24: 2 | L24: 2 | M24: 2 | N24: 2 | O24: 2 | P24: 2 | S24: 2 | T24: 2 | W24: 2 | X24: 2 | Y24: 2 | Z24: 2 | AA24: 2 | AB24: 2
A25: =SUM(G10:G26) -> 54.6 | B25: =SUM(F10:F26) -> 58.0 | C25: Le Conseiller fait la simulation sur internet avec le client si ce dernier ne l'a pas faite avant de prendre contact avec nous | D25: 4 | E25: 100% | F25: 4 | G25: 4.0 | T25: 4
A26: =A25/B25 -> 94% | C26: Le Conseiller envoie une procuration CG et RIB si besoin | D26: 1
A28: TOUS VENDEURS | C28: Le Conseiller explique la proposition de valeur comme suit : => Si secteur non desservi par VVV (erreur MKG), le conseiller doit informer le client de la proposition de valeur et l'orienter vers l'agence la plus proche
C29: RDV Gratuit | D29: 2 | E29: =IFERROR(G29/F29,"") -> 100% | F29: =IF(LEN(G29)=0,"",D29) -> 2 | G29: =IFERROR(AVERAGE(H29:EC29),"") -> 2.0 | K29: 2 | M29: 2 | O29: 2 | P29: 2 | S29: 2 | T29: 2 | W29: 2 | X29: 2 | Y29: 2 | AA29: 2 | AB29: 2
C30: 30 minutes | D30: 2 | E30: 100% | F30: 2 | G30: 2.0 | K30: 2 | M30: 2 | O30: 2 | P30: 2 | S30: 2 | T30: 2 | W30: 2 | X30: 2 | Y30: 2 | AA30: 2 | AB30: 2
C31: Pas d'engagement | D31: 2 | E31: 100% | F31: 2 | G31: 2.0 | K31: 2 | M31: 2 | O31: 2 | P31: 2 | S31: 2 | T31: 2 | W31: 2 | X31: 2 | Y31: 2 | AA31: 2 | AB31: 2
C32: Reprise immédiate | D32: 2 | E32: 100% | F32: 2 | G32: 2.0 | K32: 2 | M32: 2 | O32: 2 | P32: 2 | S32: 2 | T32: 2 | W32: 2 | X32: 2 | Y32: 2 | AA32: 2 | AB32: 2
C33: Paiement sécurisé par virement 72h | D33: 2 | E33: 100% | F33: 2 | G33: 2.0 | K33: 2 | M33: 2 | O33: 2 | P33: 2 | S33: 2 | T33: 2 | W33: 2 | X33: 2 | Y33: 2 | AA33: 2 | AB33: 2
C34: Reprise du crédit auto / leasing | D34: 2 | E34: 100% | F34: 2 | G34: 2.0 | K34: 2 | M34: 2 | O34: 2 | P34: 2 | S34: 2 | T34: 2 | W34: 2 | X34: 2 | Y34: 2 | AA34: 2 | AB34: 2
C35: Le Conseiller informe le client que nous nous occupons de toutes les démarches administratives | D35: 2 | E35: 100% | F35: 2 | G35: 2.0 | K35: 2 | M35: 2 | O35: 2 | P35: 2 | R35: 2 | S35: 2 | T35: 2 | U35: 2 | W35: 2 | X35: 2 | Y35: 2 | AA35: 2 | AB35: 2
C36: Le Conseiller informe le client que nous lui remettrons les documents de cession qu'il faudra transmettre à son assureur | D36: 2 | E36: 92% | F36: 2 | G36: 1.8 | K36: 2 | M36: 2 | O36: 0 | P36: 2 | R36: 2 | S36: 2 | T36: 2 | U36: 2 | W36: 2 | X36: 2 | Y36: 2 | AA36: 2 | AB36: 2
C37: Le Conseiller explique le prix en ligne (Argu PEEL) | D37: 10 | E37: 91% | F37: 10 | G37: 9.1 | K37: 10 | M37: 10 | O37: 10 | P37: 10 | S37: 10 | T37: 10 | W37: 10 | X37: 0 | Y37: 10 | AA37: 10 | AB37: 10
C38: Le Conseiller explique le déroulé de l'expertise (Argu PEEL) | D38: 10 | E38: 82% | F38: 10 | G38: 8.2 | K38: 10 | M38: 10 | O38: 0 | P38: 10 | S38: 10 | T38: 10 | W38: 10 | X38: 0 | Y38: 10 | AA38: 10 | AB38: 10
A39: Nb Pts Obtenus | B39: Nb Pts potentiels | C39: Le Conseiller respecte les campagnes discours (e.g. : Discours Printemps) | D39: 10 | E39: 45% | F39: 10 | G39: 4.5 | K39: 10 | M39: 10 | O39: 10 | P39: 0 | S39: 0 | T39: 10 | W39: 0 | X39: 0 | Y39: 0 | AA39: 0 | AB39: 10
A40: =SUM(G28:G41) -> 40.3 | B40: =SUM(F28:F41) -> 50.0 | C40: Le Conseiller traite les objections | D40: 4 | E40: 67% | F40: 4 | G40: 2.7 | K40: 4 | P40: 4 | V40: 0
A41: =A40/B40 -> 81% | C41: Si annulation de RDV, le conseiller propose et argumente une nouvelle proposition de RDV | D41: 4
A43: PRISE DE RDV | C43: Le Conseiller propose le RDV le plus rapide au client => Si secteur non desservi par VVV (erreur MKG) et si le client ne veut pas se déplacer, programmer un rappel dans un trimestre (ouverture agence ?) et remercier le client pour sa confiance. | D43: 2 | E43: 100% | F43: 2 | G43: 2.0 | H43: 2 | I43: 2 | K43: 2 | L43: 2 | M43: 2 | O43: 2 | P43: 2 | S43: 2 | T43: 2 | U43: 2 | W43: 2 | X43: 2 | Y43: 2 | AA43: 2 | AB43: 2
C44: Le Conseiller propose un RDV adapté au besoin du client | D44: 2 | E44: 100% | F44: 2 | G44: 2.0 | H44: 2 | I44: 2 | K44: 2 | L44: 2 | M44: 2 | O44: 2 | P44: 2 | S44: 2 | T44: 2 | U44: 2 | W44: 2 | X44: 2 | Y44: 2 | AA44: 2 | AB44: 2
A45: Nb Pts Obtenus | B45: Nb Pts potentiels | C45: Le Conseiller s'assure bien que le RDV convienne au client et s'assure que le client sera bien présent au RDV (explique l'importance de bloquer un créneau) | D45: 4 | E45: 82% | F45: 4 | G45: 3.3 | H45: 0 | I45: 4 | K45: 4 | L45: 4 | M45: 4 | O45: 4 | P45: 4 | Q45: 0 | R45: 0 | S45: 4 | T45: 4 | U45: 4 | W45: 4 | X45: 4 | Y45: 4 | AA45: 4 | AB45: 4
A46: =SUM(G43:G47) -> 14.6 | B46: =SUM(F43:F47) -> 19.0 | C46: Le Conseiller donne l'adresse exacte de l'agence | D46: 1 | E46: 82% | F46: 1 | G46: 0.8 | H46: 1 | I46: 1 | K46: 1 | L46: 1 | M46: 1 | O46: 1 | P46: 1 | Q46: 0 | R46: 0 | S46: 1 | T46: 1 | U46: 1 | W46: 1 | X46: 0 | Y46: 1 | AA46: 1 | AB46: 1
A47: =A46/B46 -> 77% | C47: Le Conseiller informe le client de la liste exacte des documents à fournir lors de l'expertise ==> CF BIBOPP Si 1er contact : Le Conseiller informe le client des documents / éléments à apporter lors du RDV Si 2nd contact ou + (annulation, modification) : le Conseiller doit reformuler l'ensemble des éléments | D47: 10 | E47: 65% | F47: 10 | G47: 6.5 | H47: 0 | I47: 0 | K47: 10 | L47: 0 | M47: 10 | O47: 10 | P47: 10 | Q47: 0 | R47: 10 | S47: 10 | T47: 10 | U47: 10 | W47: 0 | X47: 0 | Y47: 10 | AA47: 10 | AB47: 10
A49: PRISE DE CONGE | B49: =A50/B50 -> 69% | C49: Le Conseiller fait une synthèse des décisions prises et reconfirme le RDV (Date & Heure & Agence & MRK/MOD) | D49: 2 | E49: 61% | F49: 2 | G49: 1.2 | H49: 0 | I49: 0 | K49: 2 | L49: 2 | M49: 2 | O49: 2 | P49: 2 | Q49: 0 | R49: 0 | S49: 2 | T49: 2 | U49: 2 | V49: 2 | W49: 0 | X49: 0 | Y49: 0 | AA49: 2 | AB49: 2
A50: =SUM(G49:G50) -> 2.8 | B50: =SUM(F49:F50) -> 4.0 | C50: Le Conseiller remercie le client pour sa confiance | D50: 2 | E50: 78% | F50: 2 | G50: 1.6 | H50: 2 | I50: 2 | K50: 2 | L50: 2 | M50: 2 | O50: 2 | P50: 0 | Q50: 0 | R50: 2 | S50: 2 | T50: 2 | U50: 2 | V50: 2 | W50: 2 | X50: 0 | Y50: 0 | AA50: 2 | AB50: 2
A52: SAVOIR ETRE | C52: Le Conseiller respecte le temps de parole du client (ne coupe pas la parole) | D52: 2 | E52: 94% | F52: 2 | G52: 1.9 | H52: 2 | I52: 2 | J52: 0 | K52: 2 | L52: 2 | M52: 2 | N52: 2 | O52: 2 | P52: 2 | Q52: 2 | R52: 2 | S52: 2 | T52: 2 | U52: 2 | V52: 2 | X52: 2 | Y52: 2 | AB52: 2
C53: Le Conseiller annonce la mise en attente et reprend le client régulièrement si besoin | D53: 2 | E53: 100% | F53: 2 | G53: 2.0 | L53: 2 | R53: 2 | AB53: 2
C54: Le Conseiller s’assure que la demande du client a été traitée / Par ex : "ai-je bien répondu à votre demande?", "Avez- vous d'autres questions ?"… | D54: 2 | E54: 75% | F54: 2 | G54: 1.5 | H54: 0 | I54: 0 | J54: 2 | K54: 2 | L54: 2 | M54: 2 | N54: 2 | O54: 2 | P54: 2 | Q54: 0 | R54: 2 | S54: 2 | T54: 2 | U54: 2 | V54: 0 | W54: 0 | X54: 2 | Y54: 2 | AA54: 2 | AB54: 2
C55: Le Conseiller personnalise son appel (une fois lors de la prise de congés) | D55: 2 | E55: 65% | F55: 2 | G55: 1.3 | H55: 0 | I55: 0 | J55: 2 | K55: 2 | L55: 2 | M55: 2 | N55: 2 | O55: 2 | P55: 2 | Q55: 0 | R55: 0 | S55: 2 | T55: 2 | U55: 2 | V55: 0 | W55: 0 | X55: 2 | Y55: 0 | AA55: 2 | AB55: 2
C56: Le Conseiller fait preuve d'écoute active et reformule le besoin du client si nécessaire (ne fait pas répéter) | D56: 10 | E56: 84% | F56: 10 | G56: 8.4 | H56: 10 | I56: 10 | J56: 0 | K56: 10 | L56: 10 | M56: 10 | N56: 10 | O56: 10 | P56: 10 | Q56: 10 | S56: 10 | T56: 10 | U56: 10 | V56: 0 | W56: 10 | X56: 10 | Y56: 10 | AA56: 10 | AB56: 0
C57: Le Conseiller sait diriger son entretien téléphonique (évite les digressions client => DMT ~15mn max) | D57: 10 | E57: 90% | F57: 10 | G57: 9.0 | H57: 0 | I57: 10 | J57: 0 | K57: 10 | L57: 10 | M57: 10 | N57: 10 | O57: 10 | P57: 10 | Q57: 10 | R57: 10 | S57: 10 | T57: 10 | U57: 10 | V57: 10 | W57: 10 | X57: 10 | Y57: 10 | AA57: 10 | AB57: 10
C58: Le Conseiller fait preuve d'empathie | D58: 2 | E58: 100% | F58: 2 | G58: 2.0 | H58: 2 | I58: 2 | J58: 2 | K58: 2 | L58: 2 | M58: 2 | N58: 2 | O58: 2 | P58: 2 | R58: 2 | S58: 2 | T58: 2 | U58: 2 | V58: 2 | W58: 2 | X58: 2 | Y58: 2 | AA58: 2 | AB58: 2
C59: Le Conseiller emploie un ton dynamique | D59: 2 | E59: 90% | F59: 2 | G59: 1.8 | H59: 2 | I59: 2 | J59: 2 | K59: 2 | L59: 2 | M59: 2 | N59: 2 | O59: 2 | P59: 2 | Q59: 0 | R59: 2 | S59: 2 | T59: 2 | U59: 2 | V59: 2 | W59: 2 | X59: 0 | Y59: 2 | AA59: 2 | AB59: 2
A60: Nb Pts Obtenus | B60: Nb Pts potentiels | C60: Le Vocabulaire utilisé (tic de langage) est adapté et non familier | D60: 2 | E60: 79% | F60: 2 | G60: 1.6 | H60: 2 | I60: 2 | J60: 2 | K60: 2 | L60: 2 | M60: 2 | N60: 2 | O60: 2 | P60: 2 | R60: 0 | S60: 0 | T60: 0 | U60: 2 | V60: 2 | W60: 2 | X60: 2 | Y60: 2 | AA60: 0 | AB60: 2
A61: =SUM(G52:G62) -> 31.5 | B61: =SUM(F52:F62) -> 36.0 | C61: Le Conseiller est aimable, souriant | D61: 2 | E61: 100% | F61: 2 | G61: 2.0 | H61: 2 | I61: 2 | J61: 2 | K61: 2 | L61: 2 | M61: 2 | N61: 2 | O61: 2 | P61: 2 | R61: 2 | S61: 2 | T61: 2 | U61: 2 | V61: 2 | W61: 2 | X61: 2 | Y61: 2 | AA61: 2 | AB61: 2
A62: =A61/B61 -> 87% | C62: Le Conseiller a une attitude anti-commerciale | D62: DISQUALIFIANT
A64: QUALITE DU DOSSIER CLIENT | C64: Les données clients sont bien complétées (Nom, Prénom, Tel, Email…) | D64: 1 | E64: 100% | F64: 1 | G64: 1.0 | H64: 1 | I64: 1 | J64: 1 | K64: 1 | L64: 1 | M64: 1 | N64: 1 | O64: 1 | P64: 1 | S64: 1 | T64: 1 | U64: 1 | W64: 1 | X64: 1 | Y64: 1 | AA64: 1 | AB64: 1
C65: Le RDV réservé est bien conforme aux procédures (classiques ou spécifiques) et correspond à ce qui a été convenu avec le client | D65: 5 | E65: 100% | F65: 5 | G65: 5.0 | H65: 5 | I65: 5 | K65: 5 | L65: 5 | M65: 5 | O65: 5 | P65: 5 | S65: 5 | T65: 5 | U65: 5 | W65: 5 | X65: 5 | Y65: 5 | AA65: 5 | AB65: 5
C66: Le Statut du dossier est bien correct | D66: 2 | E66: 100% | F66: 2 | G66: 2.0 | H66: 2 | I66: 2 | J66: 2 | K66: 2 | L66: 2 | M66: 2 | N66: 2 | O66: 2 | P66: 2 | S66: 2 | T66: 2 | U66: 2 | W66: 2 | X66: 2 | Y66: 2 | AA66: 2 | AB66: 2
A67: Nb Pts Obtenus | B67: Nb Pts potentiels | C67: Les réponses aux Questions-Filtres sont intégralement reportées en commentaires | D67: 10 | E67: 81% | F67: 10 | G67: 8.1 | I67: 0 | J67: 10 | K67: 10 | L67: 10 | M67: 10 | N67: 10 | O67: 10 | P67: 10 | S67: 10 | T67: 10 | U67: 0 | W67: 10 | X67: 10 | Y67: 10 | AA67: 10 | AB67: 0
A68: =SUM(G64:G69) -> 25.5 | B68: =SUM(F64:F69) -> 28.0 | C68: Les informations importantes sont précisées (ex: réparation à prévoir, carrosserie abîmée..) | D68: 10 | E68: 94% | F68: 10 | G68: 9.4 | I68: 10 | J68: 10 | K68: 10 | L68: 10 | M68: 10 | N68: 10 | O68: 10 | P68: 10 | S68: 10 | T68: 10 | U68: 10 | W68: 10 | X68: 10 | Y68: 10 | AA68: 10 | AB68: 0
A69: =A68/B68 -> 91% | C69: Un rappel est bien programmé en cas de besoin / email envoyé si besoin / SMS des RDV si besoin | D69: 3

Sheet Glossaire (hidden)
C1: Nom Conseiller: | D1: Lead ID :
C2: Objet de l'appel : | D2: Date :
D5: Mode d'évaluation | E5: Barème
A6: PRISE DE CONTACT | C6: Le Conseiller accueille le client ( VVV + Nom) | D6: Si fait entièrement : 2 Si NON : 0 | E6: 2
C7: Le Conseiller part à la découverte du besoin (que puis-je faire pour vous?) | D7: Si fait entièrement : 1 Si NON : 0 | E7: 1
C8: Le Conseiller reformule le besoin du client (si j'ai bien compris…) | D8: Si fait entièrement : 1 Si NON : 1 | E8: 1
C9: Le Conseiller explique au client comment va se dérouler l'entretien téléphonique Si pas fait ou fait partiellement = 0 | D9: Si fait entièrement : 10 Si NON : 0 | E9: 10
A11: PRISE D'INFORMATION | C11: Les Questions-Filtres sont posées dès le début de l'appel Si pas fait en début d'appel = 0 | D11: Si fait entièrement : 1 Si NON : 0 | E11: 10
C12: La typologie de véhicule est bien identifiée ET la BIBOPP respectée | D12: Si fait entièrement : 1 Si NON : 0 | E12: 10
C13: La situation administrative est bien identifiée ET la BIBOPP est respectée | D13: Si fait entièrement : 1 Si NON : 0 | E13: 10
C14: 2e contact client => Le Conseiller demande le nom et prénom du client ET les épelle 2nd contact ou + => Le Conseiller doit reformuler pour garantir l'exactitude des données | D14: Si fait entièrement : 2 Si NON : 0 | E14: 2
C15: 1er contact client : Le Conseiller demande au moins 1 numéro de téléphone dont 1 portable / le reconfirme si déjà présent sur le dossier 2nd contact ou + => Le Conseiller doit reformuler pour garantir l'exactitude des données | D15: Si fait entièrement : 2 Si NON : 0 | E15: 2
C16: 1er contact client => Le Conseiller demande l'adresse email du client / la reconfirme si déjà présente sur le dossier ET l'épelle 2nd contact ou + => Le Conseiller doit reformuler pour garantir l'exactitude des données | D16: Si fait entièrement : 2 Si NON : 0 | E16: 2
C17: Si plusieurs dossiers clients, le conseiller s'assure que les autres Leads soient statués. | D17: Si fait entièrement : 2 Si NON : 0 | E17: 2
C18: 1er contact clent : Le Conseiller demande le code postal ou la ville du client pour identifier l'agence la plus proche 2nd contact ou + => Le Conseiller doit reformuler pour garantir l'exactitude des données | D18: Si fait entièrement : 2 Si NON : 0 | E18: 2
C19: Le Conseiller s'assure que le véhicule a une plaque d'immatriculation française Si NON, le conseiller DOIT expliquer au client que l'expertise ne pourra pas être effectuée tant que la CG n'a pas été refaite. | D19: Si fait entièrement : 2 Si NON : 0 | E19: 2
C20: Le Conseiller s'assure que le véhicule soit apte à rouler (Attention si véhicule non roulant, dissuader client uniquement) | D20: Si fait entièrement : 2 Si NON : 0 | E20: 2
C21: Le Conseiller demande si le véhicule est gagé | D21: Si fait entièrement : 2 Si NON : 0 | E21: 2
C22: Le Conseiller demande si pour le véhicule concerné, un crédit automobile/leasing est en cours | D22: Si fait entièrement : 2 Si NON : 0 | E22: 2
C23: Le Conseiller demande au client s'il y a des réparations à faire / dans quel état est son véhicule | D23: Si fait entièrement : 2 Si NON : 0 | E23: 2
C24: Le Conseiller s'assure que le client a bien la Carte Grise et qu'elle est à son nom | D24: Si fait entièrement : 2 Si NON : 0 | E24: 2
C25: Le Conseiller s'assure que la CG soit bien au nom du propriétaire depuis plus de 3 mois Si NON, le conseiller doit prévenir le client que l'expertise ne pourra pas être effectuée et pourquoi | D25: Si fait entièrement : 2 Si NON : 0 | E25: 2
C26: Le Conseiller fait la simulation sur internet avec le client si ce dernier ne l'a pas faite avant de prendre contact avec nous | D26: Si fait entièrement : 4 Si NON : 0 | E26: 4
C27: Le Conseiller envoie une procuration CG et RIB si besoin | D27: Si fait entièrement : 1 Si NON : 0 | E27: 1
A29: TOUS VENDEURS | C29: Le Conseiller explique la proposition de valeur comme suit : => Si secteur non desservi par VVV (erreur MKG), le conseiller doit informer le client de la proposition de valeur et l'orienter vers l'agence la plus proche
C30: RDV Gratuit | D30: Si fait entièrement : 2 Si NON : 0 | E30: 2
C31: 30 minutes | D31: Si fait entièrement : 2 Si NON : 0 | E31: 2
C32: Pas d'engagement | D32: Si fait entièrement : 2 Si NON : 0 | E32: 2
C33: Reprise immédiate | D33: Si fait entièrement : 2 Si NON : 0 | E33: 2
C34: Paiement sécurisé par virement 72h | D34: Si fait entièrement : 2 Si NON : 0 | E34: 2
C35: Reprise du crédit auto / leasing => Le critère est en N/A si le client a déclaré qu'il n'y avait pas de crédit automobile/leasing en cours | D35: Si fait entièrement : 2 Si NON : 0 | E35: 2
C36: Le Conseiller informe le client que nous nous occupons de toutes les démarches administratives | D36: Si fait entièrement : 2 Si NON : 0 | E36: 2
C37: Le Conseiller informe le client que nous lui remettrons les documents de cession qu'il faudra transmettre à son assureur | D37: Si fait entièrement : 2 Si NON : 0 | E37: 2
C38: Le Conseiller respecte le Prix en ligne (argu PEEL) => Critère en N/A si rappel client post-RDV => Critère à évaluer pour tous les autres cas | D38: Si fait entièrement : 10 Si NON : 0 | E38: 10
C39: Le Conseiller respecte le déroulé d'expertise en agence (argu PEEL) => Critère en N/A si rappel client post-RDV => Critère à évaluer pour tous les autres cas | D39: Si fait entièrement : 10 Si NON : 1 | E39: 10
C40: Le Conseiller respecte les campagnes discours (e.g. : Discours Printemps) => Critère en N/A si rappel client post-RDV => Critère à évaluer pour tous les autres cas | D40: Si fait entièrement : 5 Si NON : 0 | E40: 5
C41: Le Conseiller traite les objections => Si objection client : Critère à évaluer => Si pas d'objection client : Critère en N/A | D41: Si fait entièrement : 4 Si NON : 0 | E41: 4
C42: Si annulation de RDV, le conseiller propose et argumente une nouvelle proposition de RDV | D42: Si fait entièrement : 4 Si NON : 0 | E42: 4
A44: PRISE DE RDV | C44: Le Conseiller propose le RDV le plus rapide au client => Si secteur non desservi par VVV (erreur MKG) et si le client ne veut pas se déplacer, programmer un rappel dans un trimestre (ouverture agence ?) et remercier le client pour sa confiance. | D44: Si fait entièrement : 2 Si NON : 0 | E44: 2
C45: Le Conseiller propose un RDV adapté au besoin du client | D45: Si fait entièrement : 2 Si NON : 0 | E45: 2
C46: Le Conseiller s'assure bien que le RDV convienne au client et s'assure que le client sera bien présent au RDV (explique l'importance de bloquer un créneau) | D46: Si fait entièrement : 4 Si NON : 0 | E46: 4
C47: Le Conseiller donne l'adresse exacte de l'agence | D47: Si fait entièrement : 1 Si NON : 0 | E47: 1
C48: Si 1er contact : Le Conseiller informe le client des documents / éléments à apporter lors du RDV : Si 2nd contact ou + (annulation, modification) : le Conseiller doit reformuler l'ensemble des éléments * A minima pour les 2nd contacts ou +, le critère est évalué "Fait" si l'agent indique au client de bien se référer à l'e-mail de confirmation pour la liste des éléments à fournir lors du RDV
C49: Carte Grise obligatoire | D49: Si fait entièrement : 3 Si NON : 0 | E49: 3
C50: Pièce d'identité | D50: Si fait entièrement : 1 Si NON : 0 | E50: 1
C51: Carnet de suivi d'entretien du véhicule (facture, CT…) | D51: Si fait entièrement : 1 Si NON : 0 | E51: 1
C52: Le RIB, au même nom(s) que la carte grise. Si le nom sur le RIB est différent (ou si un seul nom sur le RIB alors que deux sur la carte grise), merci de fournir procuration pour autoriser à virer l'argent sur ce compte | D52: Si fait entièrement : 1 Si NON : 0 | E52: 1
C53: Manuel d'utilisation | D53: Si fait entièrement : 1 Si NON : 0 | E53: 1
C54: Une procuration pour vendre la voiture s'il y a plusieurs noms sur la carte grise et que tous les propriétaires ne viennent pas au rendez-vous | D54: Si fait entièrement : 1 Si NON : 0 | E54: 1
C55: Sa voiture, vide et si possible assez propre | D55: Si fait entièrement : 1 Si NON : 0 | E55: 1
C56: Les 2 jeux de clés | D56: Si fait entièrement : 1 Si NON : 0 | E56: 1
C57: La roue de secours et/ou les éventuels pneus supplémentaires (hiver, etc.) | D57: Si fait entièrement : 1 Si NON : 0 | E57: 1
A59: PRISE DE CONGE | C59: Le Conseiller fait une synthèse des décisions prises et reconfirme le RDV (Date & Heure & Agence & MRK/MOD) | D59: Si fait entièrement : 2 Si NON : 0 | E59: 2
C60: Le Conseiller remercie le client pour sa confiance | D60: Si fait entièrement : 2 Si NON : 0 | E60: 2
A62: SAVOIR ETRE | C62: Le Conseiller respecte le temps de parole du client (ne coupe pas la parole) | D62: Si fait entièrement : 2 Si NON : 0 | E62: 2
C63: Le Conseiller annonce la mise en attente et reprend le client régulièrement si besoin | D63: Si fait entièrement : 2 Si NON : 0 | E63: 2
C64: Le Conseiller s’assure que la demande du client a été traitée "ai-je bien répondu à votre demande?" | D64: Si fait entièrement : 2 Si NON : 0 | E64: 2
C65: Le Conseiller personnalise son appel (une fois lors de la prise de congés) | D65: Si fait entièrement : 2 Si NON : 0 | E65: 2
C66: Le Conseiller fait preuve d'écoute active et reformule le besoin du client si nécessaire (ne fait pas répéter) | D66: Si fait entièrement : 10 Si NON : 0 | E66: 10
C67: Le Conseiller sait diriger son entretien téléphonique (évite les digressions client => DMT ~15mn max) | D67: Si fait entièrement : 10 Si NON : 0 | E67: 10
C68: Le Conseiller fait preuve d'empathie | D68: Si fait entièrement : 2 Si NON : 0 | E68: 2
C69: Le Conseiller emploie un ton dynamique | D69: Si fait entièrement : 2 Si NON : 0 | E69: 2
C70: Le Vocabulaire utilisé (tic de langage) est adapté et non familier | D70: Si fait entièrement : 2 Si NON : 0 | E70: 2
C71: Le Conseiller est aimable, souriant | D71: Si fait entièrement : 2 Si NON : 0 | E71: 2
C72: Le Conseiller a une attitude anti-commerciale | E72: DISQUALIFIANT
A74: QUALITE DU DOSSIER CLIENT | C74: Les données clients sont bien complétées (Nom, Prénom, Tel, Email…) | D74: Si fait entièrement : 1 Si NON : 0 | E74: 1
C75: Le RDV réservé est bien conforme aux procédures (classiques ou spécifiques) et correspond à ce qui a été convenu avec le client | D75: Si fait entièrement : 5 Si NON : 0 | E75: 5
C76: Le Statut du dossier est bien correct | D76: Si fait entièrement : 2 Si NON : 0 | E76: 2
C77: Les informations importantes sont précisées (ex: réparation à prévoir, carrosserie abîmée..) | D77: Si fait entièrement : 1 Si NON : 0 | E77: 1
C78: Les réponses aux Questions-Filtres sont intégralement reportées en commentaires | D78: Si fait entièrement : 10 Si NON : 0 | E78: 10
C79: Les informations importantes sont précisées (ex: réparation à prévoir, carrosserie abîmée..) | D79: Si fait entièrement : 10 Si NON : 0 | E79: 10
C80: Un rappel est bien programmé en cas de besoin / email envoyé si besoin / SMS des RDV à J0 bien envoyé | D80: Si fait entièrement : 3 Si NON : 0 | E80: 3

Sheet Carte de compétences
A1: ='Grille Evaluation'!A6:B6 -> PRISE DE CONTACT | B1: =IFERROR(SUM('Grille Evaluation'!A8)/SUM('Grille Evaluation'!B8),"") -> 99%
A2: ='Grille Evaluation'!A10:B10 -> PRISE D'INFORMATION | B2: =IFERROR(SUM('Grille Evaluation'!A25)/SUM('Grille Evaluation'!B25),"") -> 94%
A3: ='Grille Evaluation'!A28:B28 -> TOUS VENDEURS | B3: =IFERROR(SUM('Grille Evaluation'!A40)/SUM('Grille Evaluation'!B40),"") -> 81%
A4: ='Grille Evaluation'!A43:B43 -> PRISE DE RDV | B4: =IFERROR(SUM('Grille Evaluation'!A46)/SUM('Grille Evaluation'!B46),"") -> 77%
A5: ='Grille Evaluation'!A49 -> PRISE DE CONGE | B5: =IFERROR(SUM('Grille Evaluation'!A50)/SUM('Grille Evaluation'!B50),"") -> 69%
A6: ='Grille Evaluation'!A52:B52 -> SAVOIR ETRE | B6: =IFERROR(SUM('Grille Evaluation'!A61)/SUM('Grille Evaluation'!B61),"") -> 87%
A7: ='Grille Evaluation'!A64:B64 -> QUALITE DU DOSSIER CLIENT | B7: =IFERROR(SUM('Grille Evaluation'!A68)/SUM('Grille Evaluation'!B68),"") -> 91%
